Cogmind - Beta 11 *** ADVENTURER MODE // 2022.04.10 @ 04:04:05 Player: Ms Vella Result: Self-destructed Performance ------------- Evolutions (6) 3000 Regions Visited (14) 2800 Robots Destroyed (102) 510 Value Destroyed (3807) 3807 Prototype IDs (58) 1160 Alien Tech Used (1) 200 Bonus (939) 939 TOTAL SCORE: 12416 Bonus ------- High Alert Combat Kills 58 Follower Combat Kills 307 Aligned with FarCom 300 Met Zhirov 300 Friendly Fire -26 Cogmind --------- Core Integrity 590/1150 Matter 292/300 Energy 650/650 System Corruption 18% Temperature Cool (0) Movement Core (300) Ox5 Location -3/Proximity Caves Parts ------- > --- POWER (2) -------- Micro Fission Core > --- PROPULSION (6) --- (None) > --- UTILITY (9) ------ Advanced Heat Sink Advanced Heat Sink Advanced Energy Well Makeshift Salvage Targeting Computer Improved Targeting Computer Experimental Power Shielding > --- WEAPON (2) ------- Beamcaster > --- INVENTORY (5) ---- Neutrino Core High-capacity Battery (250) Improved Recalibrator Transdimensional Reconstructor Power Maul Peak State ------------ > --- POWER ------------ Neutrino Core Neutrino Core > --- PROPULSION ------- Advanced Medium Treads Advanced Heavy Siege Treads Advanced Heavy Siege Treads > --- UTILITY ---------- Advanced Coolant Injector Large Storage Unit Machine Analyzer Active Sensor Suite 0b10 Alert Chip Advanced Target Analyzer Advanced Shield Generator > --- WEAPON ----------- Matter Neutralizer Mass Driver > --- INVENTORY -------- Light Ion Engine Micro Fission Core Improved Heat Sink Advanced Heat Sink Medium Storage Unit High-capacity Battery Improved Weapon Cycler Makeshift System Shield Improved Component Analysis Suite Improved Recalibrator Beamcaster KE Penetrator Long-range Missile Launcher Improved Remote Datajack [Rating: 131] Favorites ----------- Power Neutrino Core Engine Light Ion Engine Power Core Neutrino Core Reactor Light Antimatter Reactor Propulsion Cooled Airjet Treads Improved Treads Leg Aluminum Leg Wheel Armored Huge Wheel Hover Unit Cooled Airjet Utility Large Storage Unit Device Advanced Heat Sink Storage Large Storage Unit Processor 0b10 Alert Chip Hackware Hacking Suite Protection Hardened Light Armor Plating Weapon Assault Rifle Energy Gun Improved Arc Projector Energy Cannon Matter Neutralizer Ballistic Gun Assault Rifle Ballistic Cannon Mass Driver Launcher Mini Grenade Launcher Special Weapon Improved Remote Datajack Impact Weapon Power Maul Build | -11 -10 -10 -10 -9 -8 -7 -7 -7 -5 -4 -4 -4 -4 -3 ------- Run | Scr Mat Min Exi Min Mat Fac Sto Rec Fac Fac Upp Upp Zhi Pro Slots Evolved 12 | . . . . . 4 2 . . 4 2 . . . . Power 1 | . . . . . . 1 . . . . . . . . Propulsion 4 | . . . . . 2 . . . 2 . . . . . Utility 7 | . . . . . 2 1 . . 2 2 . . . . Weapon . | . . . . . . . . . . . . . . . Parts Attached 134 | . 5 2 . 2 10 5 23 2 34 14 11 9 15 2 Power 17 | . 2 . . . 1 . 4 . 2 3 1 2 2 . Engine 9 | . 2 . . . 1 . 2 . 2 . 1 . 1 . Core 7 | . . . . . . . 2 . . 3 . 1 1 . Reactor 1 | . . . . . . . . . . . . 1 . . Propulsion 36 | . . . . . 5 1 4 . 15 3 2 3 3 . Treads 6 | . . . . . . . . . . 3 1 2 . . Leg 2 | . . . . . . . . . 2 . . . . . Wheel 8 | . . . . . . . . . 4 . 1 . 3 . Hover 20 | . . . . . 5 1 4 . 9 . . 1 . . Flight . | . . . . . . . . . . . . . . . Utility 40 | . 3 . . . 2 1 6 1 9 5 5 3 5 . Device 21 | . 1 . . . 1 . 3 . 4 4 2 3 3 . Storage 4 | . 1 . . . . . 1 . 1 . . . 1 . Processor 7 | . . . . . . . 1 1 1 1 3 . . . Hackware 3 | . . . . . 1 . . . 2 . . . . . Protection 5 | . 1 . . . . 1 1 . 1 . . . 1 . Artifact . | . . . . . . . . . . . . . . . Weapon 41 | . . 2 . 2 2 3 9 1 8 3 3 1 5 2 Energy Gun 9 | . . 1 . . . 1 1 . 3 . 1 . 1 1 Energy Cannon 5 | . . . . . . . 2 . 2 1 . . . . Ballistic Gun 15 | . . 1 . 1 2 2 4 . 1 . . 1 3 . Ballistic Cannon 2 | . . . . . . . . . . 1 1 . . . Launcher 8 | . . . . 1 . . 2 1 2 1 1 . . . Special Weapon 1 | . . . . . . . . . . . . . 1 . Impact Weapon 1 | . . . . . . . . . . . . . . 1 Slashing Weapon . | . . . . . . . . . . . . . . . Piercing Weapon . | . . . . . . . . . . . . . . . Special Melee Weapon . | . . . . . . . . . . . . . . . Unidentified Prototypes 8 | . 1 . . . 1 . 2 . . . . . 4 . Corrupted Parts 2 | . . . . . . . . . 2 . . . . . System Corruption 3 | . . . . . . . . . 3 . . . . . Parts Lost 54 | . . . . . . . 3 . 26 . 11 4 . 10 Power 8 | . . . . . . . . . 4 . 2 1 . 1 Propulsion 22 | . . . . . . . 2 . 12 . 3 1 . 4 Utility 14 | . . . . . . . 1 . 4 . 5 1 . 3 Weapon 10 | . . . . . . . . . 6 . 1 1 . 2 Highest Loss Streak 15 | . . . . . . . 1 . 15 . 11 3 . 10 To Critical Strikes 3 | . . . . . . . . . . . 2 . . 1 Average Slot Usage (%) 74 | . 97 100 100 100 90 90 85 98 80 45 50 65 73 78 Engine 5 | . 14 14 14 14 9 7 6 . 2 . 1 5 5 4 Core 3 | . . . . . . . 2 15 4 9 3 2 5 5 Treads 3 | . . . . . . . . . . 4 8 9 10 7 Leg 5 | . 28 28 28 28 . . . . . . . . . . Wheel 2 | . . . . . . . . . 3 2 1 5 5 6 Hover 9 | . . . . . 35 30 27 30 24 . . 4 2 . Device 10 | . . 14 14 14 13 15 17 7 6 6 8 12 17 18 Storage 7 | . 14 14 14 14 9 7 7 7 5 5 5 5 7 10 Processor 7 | . . . . . . . 1 7 10 11 8 10 10 10 Hackware 1 | . . . . . 6 7 7 7 3 . . . . . Protection 2 | . 11 . . . . 5 3 7 3 . . . 2 5 Energy Gun 2 | . 14 8 . . . . . . 3 . . 5 2 . Energy Cannon 1 | . . . . . . . 1 . 3 1 4 . . . Ballistic Gun 6 | . 14 19 28 25 18 14 8 7 . . . 2 2 7 Naked Turns . | . . . . . . . . . . . . . . . Heaviest Build 77 | 13 19 23 20 20 23 28 39 39 53 77 77 61 70 57 Greatest Support 190 | 20 20 20 20 20 28 30 39 39 61 190 190 51 46 40 Greatest Overweight (x) 13 | . . 1 . . . . 1 . 10 5 13 2 5 4 Average Overweight (x) . | . . . . . . . . . . 1 . 1 1 1 Largest Inventory Capacity 15 | 8 10 10 10 10 10 10 15 15 15 15 15 15 15 15 Average Capacity 13 | 8 8 10 10 10 10 10 12 15 15 15 15 15 15 14 Most Carried 15 | 5 10 10 10 10 10 10 15 15 15 15 15 15 15 15 Average Carried 12 | 3 5 9 9 9 7 9 11 14 13 12 14 13 14 14 Final Capacity 15 | 8 10 10 10 10 10 10 15 15 15 15 15 15 15 5 Final Carried 15 | 2 10 10 10 10 9 10 15 15 12 13 15 13 15 5 Class Distribution -------------------- 40% | Mutant 17% | Scavenger-Mutant 16% | Hacker-Mutant 10% | Hacker-Scout 6% | Skirmisher 5% | Derelict-Mutant Dominant Class ---------------- Mutant | -10/Materials Mutant | -10/Mines Mutant | -10/Exiles Mutant | -9/Mines Hacker-Mutant | -8/Materials Hacker-Mutant | -7/Factory Hacker-Mutant | -7/Storage Hacker-Mutant | -7/Recycling Hacker-Scout | -5/Factory Mutant | -4/Factory Mutant | -4/Upper Caves Scavenger-Mutant | -4/Upper Caves Scavenger-Mutant | -4/Zhirov Scavenger-Mutant | -3/Proximity Caves Resources | -11 -10 -10 -10 -9 -8 -7 -7 -7 -5 -4 -4 -4 -4 -3 ----------- Run | Scr Mat Min Exi Min Mat Fac Sto Rec Fac Fac Upp Upp Zhi Pro Matter Collected 2686 | 200 121 60 . 52 . . 730 80 287 152 410 272 248 74 Remotely . | . . . . . . . . . . . . . . . Salvage Created 4238 | . 353 139 . 94 . . 919 92 923 315 391 351 496 165 Parts 204 | . 22 11 . 5 . . 55 12 46 13 8 8 14 10 Haulers Intercepted 3 | . 1 . . . . . 2 . . . . . . . Recyclers Shooed 3 | . . 1 . . . . . . 2 . . . . . Parts Field Recycled . | . . . . . . . . . . . . . . . Retrieved Matter . | . . . . . . . . . . . . . . . Parts Self-Destructed 55 | . . . . . . . . . . . 10 22 9 14 Prevented . | . . . . . . . . . . . . . . . Kills | -11 -10 -10 -10 -9 -8 -7 -7 -7 -5 -4 -4 -4 -4 -3 ------- Run | Scr Mat Min Exi Min Mat Fac Sto Rec Fac Fac Upp Upp Zhi Pro Combat Hostiles Destroyed 76 | . 6 5 . 3 . . 16 3 22 6 8 4 . 3 Melee 2 | . . . . . . . . . . 2 . . . . Guns 29 | . 6 5 . 2 . . 9 . 1 . . 4 . 2 Cannons 13 | . . . . . . . . . 2 3 8 . . . AOE 31 | . . . . 1 . . 7 3 19 1 . . . . Classes Destroyed 15 | . 6 . . 1 . . 4 1 2 . 1 . . . Worker 6 | . . . . . . . 3 . 2 1 . . . . Builder 7 | . 1 . . . . . . 2 4 . . . . . Tunneler 1 | . . . . . . . . . 1 . . . . . Hauler 3 | . 1 . . . . . 2 . . . . . . . Recycler 6 | . 1 1 . . . . 1 1 2 . . . . . Operator 1 | . . . . . . . 1 . . . . . . . Drone 3 | . . . . . . . . 3 . . . . . . Watcher 2 | . 1 . . . . . 1 . . . . . . . Swarmer 22 | . 3 5 . 1 . . 7 . 4 . . . . 2 Grunt 27 | . 3 . . 1 . . 2 . 11 3 3 4 . . Brawler 2 | . . . . . . . . . . . 2 . . . Duelist 3 | . . . . 1 . . . . . . 2 . . . Sentry 9 | . . . . . . . 6 . . 2 1 . . . Hunter 2 | . . . . . . . . . 1 . . . . 1 Programmer 8 | . . . . . . . 1 . 6 1 . . . . Best Kill Streak 10 | . 6 3 . 2 . . 7 3 10 2 8 3 . 3 Combat Bots Only 8 | . 3 3 . 2 . . 6 1 8 2 8 3 . 3 Max Kills in Single Turn 4 | . 1 1 . 1 . . 4 3 4 1 1 1 . 1 Gunslinging . | . . . . . . . . . . . . . . . Exploded 3 | . . . . 1 . . 3 1 3 1 . . . . Melee 1 | . . . . . . . . . . 1 . . . . Uniques/NPCs Destroyed . | . . . . . . . . . . . . . . . Combat | -11 -10 -10 -10 -9 -8 -7 -7 -7 -5 -4 -4 -4 -4 -3 -------- Run | Scr Mat Min Exi Min Mat Fac Sto Rec Fac Fac Upp Upp Zhi Pro Damage Taken 7612 | . 149 68 . 53 . . 724 29 2204 492 2236 621 . 1036 Core 1360 | . 26 32 . . . . 99 . 643 21 299 72 . 168 Absorbed by Shields 925 | . . . . . . . 516 . 101 184 124 . . . Reduced by Siege Mode 106 | . . . . . . . . . . 69 37 . . . Redirected to Shielding 137 | . 5 . . . . . . . . . . . . 132 Regen/Repaired (Parts) 16 | . . . . . . . 16 . . . . . . . Core Remaining (%) 79 | 100 . . . 76 100 . . 85 35 . . . . . Volleys Fired 304 | . 27 10 . 4 . 1 72 8 67 16 27 30 25 17 Largest 2 | . 2 2 . 2 . 2 2 1 2 2 2 2 1 2 Hottest 162 | . 60 60 . 40 . 40 63 30 155 162 162 121 75 75 Shots Fired 391 | . 53 20 . 6 . 2 87 8 78 20 29 38 25 25 Gun 266 | . 53 20 . 4 . 2 77 5 20 . . 38 22 25 Cannon 80 | . . . . . . . 4 . 30 18 28 . . . Launcher 42 | . . . . 2 . . 6 3 28 2 1 . . . Special 3 | . . . . . . . . . . . . . 3 . Kinetic 190 | . 27 10 . 4 . 2 77 5 3 4 18 8 12 20 Thermal 142 | . 26 10 . . . . . . 37 14 10 30 10 5 Explosive 42 | . . . . 2 . . 6 3 28 2 1 . . . Electromagnetic 14 | . . . . . . . 4 . 10 . . . . . Robot Hit Streak 55 | . 17 10 . 4 . 5 33 3 9 12 14 25 48 55 Robot Miss Streak 3 | . 2 1 . 1 . 1 1 3 3 1 1 1 . 2 Penetration Max 1 | . . . . . . . . . . . . . 1 1 Secondary Targets 4 | . 1 1 . . . . . . . . . 2 . . Max Gunslinging Chain 1 | . 1 1 . . . . . . . . . 1 . . Shots Hit Robots 295 | . 41 16 . 4 . 1 78 3 34 18 26 32 23 19 Core Hits 202 | . 17 8 . 7 . . 42 7 68 11 15 12 9 6 Critical Kills 1 | . . . . . . . 1 . . . . . . . Critical Parts Destroyed 1 | . . . . . . . . . . . . . . 1 Critical Strikes 7 | . . . . . . . 1 . . 1 1 2 1 1 Burn 3 | . . . . . . . . . . . . 2 1 . Destroy 1 | . . . . . . . 1 . . . . . . . Blast 2 | . . . . . . . . . . 1 1 . . . Smash 1 | . . . . . . . . . . . . . . 1 Melee Attacks 1 | . . . . . . . . . . . . . . 1 Impact 1 | . . . . . . . . . . . . . . 1 Slashing . | . . . . . . . . . . . . . . . Piercing . | . . . . . . . . . . . . . . . Sneak Attacks . | . . . . . . . . . . . . . . . Combat Hostiles . | . . . . . . . . . . . . . . . Follow-up Attacks . | . . . . . . . . . . . . . . . Damage Inflicted 11017 | . 508 211 . 84 . 15 2152 248 3816 1117 1019 854 601 392 Guns 3997 | . 508 204 . 52 . 15 1217 34 171 . . 854 601 341 Cannons 1984 | . . . . . . . 104 . 436 610 834 . . . Explosions 4872 | . . . . 32 . . 820 214 3209 412 185 . . . Melee 51 | . . . . . . . . . . . . . . 51 Ramming 113 | . . 7 . . . . 11 . . 95 . . . . Kinetic 3253 | . 282 115 . 52 . 15 1217 34 32 126 585 174 343 278 Thermal 2954 | . 226 89 . . . . . . 905 484 249 680 258 63 Explosive 4507 | . . . . 32 . . 820 214 2844 412 185 . . . Electromagnetic 139 | . . . . . . . 104 . 35 . . . . . Impact 51 | . . . . . . . . . . . . . . 51 Slashing . | . . . . . . . . . . . . . . . Piercing . | . . . . . . . . . . . . . . . Highest Corruption 18 | . . . . . . . 1 1 13 . 18 18 18 18 Average Corruption 10 | . . . . . . . 1 1 4 . 17 18 18 18 Corruption Purged . | . . . . . . . . . . . . . . . Corruption Blocked . | . . . . . . . . . . . . . . . Effects 126 | . . . . . . . 3 5 28 . 30 28 25 7 Message Errors 26 | . . . . . . . . 3 5 . 3 5 8 2 Matter Fused 35 | . . . . . . . 1 . 5 . 11 8 8 2 Heat Flow Errors 16 | . . . . . . . . . 2 . 6 4 3 1 Energy Discharges 11 | . . . . . . . 1 . 1 . 4 4 1 . Parts Rejected 1 | . . . . . . . . . 1 . . . . . Data Loss (minor) 21 | . . . . . . . . 1 10 . 4 2 4 . Data Loss (major) 5 | . . . . . . . . 1 . . 2 1 1 . Misfires 4 | . . . . . . . . . 2 . . 2 . . Alerts 1 | . . . . . . . . . . . . 1 . . Misdirections 2 | . . . . . . . . . 1 . . . . 1 Weapon Failures 4 | . . . . . . . 1 . 1 . . 1 . 1 Overload Shots . | . . . . . . . . . . . . . . . Overflow Damage 208 | . . . . . . . 30 . 108 . 19 . . 51 Projectiles 30 | . . . . . . . . . 11 . 19 . . . Explosions 127 | . . . . . . . 30 . 97 . . . . . Melee 51 | . . . . . . . . . . . . . . 51 Knockbacks 3 | . . . . . . . . . . 1 2 . . . Impact 1 | . . . . . . . . . . 1 . . . . Kinetic 2 | . . . . . . . . . . . 2 . . . Secondary . | . . . . . . . . . . . . . . . Self-Inflicted Damage 426 | . . . . . . . 71 29 258 12 56 . . . Shots 11 | . . . . . . . 3 2 5 . 1 . . . Rammed 12 | . . . . . . . 1 . . 11 . . . . Targets Rammed 15 | . . 1 . . . . 1 . . 13 . . . . Kicked 1 | . . 1 . . . . . . . . . . . . Crushed 2 | . . . . . . . . . . 2 . . . . Highest Temperature 303 | . 54 20 . . 303 . 40 22 285 189 247 218 156 91 Average Temperature 68 | . 33 15 . . 150 . 12 7 76 98 84 46 84 91 Received Heat Transfer 1744 | . 54 . . . . . 274 . 535 182 456 243 . . Siege Activations 2 | . . . . . . . . . . 1 1 . . . Total Turns 37 | . . . . . . . . . . 31 6 . . . Longest Duration 31 | . . . . . . . . . . 31 6 . . . Robots Corrupted . | . . . . . . . . . . . . . . . Combat Hostiles . | . . . . . . . . . . . . . . . Parts Fried 3 | . . . . . . . 3 . . . . . . . Impact Corruptions 3 | . . . . . . . . . . . . . . 3 Robots Melted . | . . . . . . . . . . . . . . . Combat Hostiles . | . . . . . . . . . . . . . . . Parts Melted 8 | . . . . . . . . . 2 . 1 4 . 1 Heat Transferred 3885 | . 525 200 . . . . . . 755 481 259 1110 444 111 Parts Sabotaged . | . . . . . . . . . . . . . . . Parts Stolen . | . . . . . . . . . . . . . . . Parts Stripped . | . . . . . . . . . . . . . . . Power Chain Reactions . | . . . . . . . . . . . . . . . Missiles Intercepted . | . . . . . . . . . . . . . . . Alert | -11 -10 -10 -10 -9 -8 -7 -7 -7 -5 -4 -4 -4 -4 -3 ------- Run | Scr Mat Min Exi Min Mat Fac Sto Rec Fac Fac Upp Upp Zhi Pro Peak Influence 924 | . 199 127 . 170 46 32 568 223 924 228 . . . . Initial 920 | . . 2 . . 46 17 12 187 920 224 . . . . Average 238 | . 78 91 . 40 46 30 262 92 455 132 . . . . Maximum Alert Level 3 | . . . . . . . 2 1 3 1 . . . . Low Security (%) 59 | 100 100 100 . 100 100 100 42 98 28 57 . . . . Level 1 18 | . . . . . . . 32 1 16 42 . . . . Level 2 13 | . . . . . . . 24 . 29 . . . . . Level 3 8 | . . . . . . . . . 25 . . . . . Level 4 . | . . . . . . . . . . . . . . . Level 5 . | . . . . . . . . . . . . . . . High Security . | . . . . . . . . . . . . . . . Max Security . | . . . . . . . . . . . . . . . Squads Dispatched 14 | . 1 . . . . 1 5 . 4 3 . . . . Investigation 3 | . 1 . . . . . 1 . 1 . . . . . Extermination 3 | . . . . . . . 1 . 1 1 . . . . Reinforcement 7 | . . . . . . 1 3 . 2 1 . . . . Assault . | . . . . . . . . . . . . . . . Garrison 1 | . . . . . . . . . . 1 . . . . Intercept . | . . . . . . . . . . . . . . . Searches Triggered 2 | . . . . . . . . . 2 . . . . . Construction Impeded 1 | . . . . . . . . . 1 . . . . . Haulers Reinforced 2 | . . . . . . . 2 . . . . . . . Active Scanning Responses . | . . . . . . . . . . . . . . . Cargo Convoy Interrupts . | . . . . . . . . . . . . . . . Stealth | -11 -10 -10 -10 -9 -8 -7 -7 -7 -5 -4 -4 -4 -4 -3 --------- Run | Scr Mat Min Exi Min Mat Fac Sto Rec Fac Fac Upp Upp Zhi Pro Distress Signals 5 | . . . . . . . 3 . 1 1 . . . . Communications Jammed . | . . . . . . . . . . . . . . . Distress Signals . | . . . . . . . . . . . . . . . Times Spotted 160 | . 7 4 . 6 . 1 35 8 63 10 9 10 . 7 Peak Tracking Total 9 | . 3 2 . 3 . 1 6 3 9 4 9 4 . 6 Tactical Retreats 13 | . . . . . . . 6 . 6 . . . . 1 Traps | -11 -10 -10 -10 -9 -8 -7 -7 -7 -5 -4 -4 -4 -4 -3 ------- Run | Scr Mat Min Exi Min Mat Fac Sto Rec Fac Fac Upp Upp Zhi Pro Traps Triggered 8 | . 1 . . . . . 1 . 4 2 . . . . Indirectly . | . . . . . . . . . . . . . . . Trap Hack Attempts . | . . . . . . . . . . . . . . . Triggered . | . . . . . . . . . . . . . . . Disarmed . | . . . . . . . . . . . . . . . Reprogrammed . | . . . . . . . . . . . . . . . Reused . | . . . . . . . . . . . . . . . Traps Extracted . | . . . . . . . . . . . . . . . Installed . | . . . . . . . . . . . . . . . Triggered . | . . . . . . . . . . . . . . . Machines | -11 -10 -10 -10 -9 -8 -7 -7 -7 -5 -4 -4 -4 -4 -3 ---------- Run | Scr Mat Min Exi Min Mat Fac Sto Rec Fac Fac Upp Upp Zhi Pro Machines Disabled 13 | . . . . 1 . . 1 1 10 . . . . . Max in Single Turn 5 | . . . . 1 . . 1 1 5 . . . . . Machines Sabotaged . | . . . . . . . . . . . . . . . Garrisons Compromised . | . . . . . . . . . . . . . . . Overloaded Fab Kills . | . . . . . . . . . . . . . . . Hacking | -11 -10 -10 -10 -9 -8 -7 -7 -7 -5 -4 -4 -4 -4 -3 --------- Run | Scr Mat Min Exi Min Mat Fac Sto Rec Fac Fac Upp Upp Zhi Pro Machines Accessed 36 | . 5 . 2 . 2 2 5 5 4 2 1 . 8 . Terminals 19 | . 5 . . . 1 1 4 4 3 1 . . . . Fabricators 2 | . . . . . . . . . 1 1 . . . . Repair Stations 1 | . . . . . . . 1 . . . . . . . Recycling Units 1 | . . . . . . . . 1 . . . . . . Scanalyzers 2 | . . . . . 1 1 . . . . . . . . Garrison Access . | . . . . . . . . . . . . . . . Total Hacks 117 | . 13 . 2 . 3 13 11 9 15 3 1 . 47 . Successful 102 | . 11 . 2 . 3 13 6 7 10 2 1 . 47 . Failed 15 | . 2 . . . . . 5 2 5 1 . . . . Catastrophic 3 | . 1 . . . . . . 2 . . . . . . Database Lockouts . | . . . . . . . . . . . . . . . Manual 28 | . 6 . 1 . . 1 5 7 8 . . . . . Terminals 44 | . 13 . . . 1 1 9 8 11 1 . . . . Fabricators 6 | . . . . . . . . . 4 2 . . . . Repair Stations 2 | . . . . . . . 2 . . . . . . . Recycling Units 1 | . . . . . . . . 1 . . . . . . Scanalyzers 14 | . . . . . 2 12 . . . . . . . . Garrison Access . | . . . . . . . . . . . . . . . Terminal Hacks 74 | . 10 . 2 . 1 . 4 4 4 1 1 . 47 . Record 36 | . . . 1 . . . . . . . . . 35 . Part Schematic 4 | . . . . . . . . . . . . . 4 . Robot Schematic 1 | . . . . . . . 1 . . . . . . . Robot Analysis 5 | . . . . . . . . 1 . . . . 4 . Prototype ID Bank 7 | . 3 . . . . . . . . . . . 4 . Open Door 2 | . . . . . . . 1 . . . 1 . . . Open DSF 1 | . . . . . . . . . . 1 . . . . Level Access Points 1 | . 1 . . . . . . . . . . . . . Branch Access Points 3 | . 1 . . . . . 1 . 1 . . . . . Fabricator Index 1 | . . . . . . . 1 . . . . . . . Alert Level 3 | . 2 . . . 1 . . . . . . . . . Unreport Threat 7 | . 3 . . . . . . 2 2 . . . . . Security Status 1 | . . . . . . . . . 1 . . . . . Registered Components 1 | . . . . . . . . 1 . . . . . . EX-Prototype ID Bank 1 | . . . 1 . . . . . . . . . . . Fabricator Hacks 5 | . . . . . . . . . 4 1 . . . . Load Schematic 2 | . . . . . . . . . 2 . . . . . Build 3 | . . . . . . . . . 2 1 . . . . Repair Station Hacks 2 | . . . . . . . 2 . . . . . . . Scan Component 1 | . . . . . . . 1 . . . . . . . Repair 1 | . . . . . . . 1 . . . . . . . Recycling Unit Hacks . | . . . . . . . . . . . . . . . Scanalyzer 14 | . . . . . 2 12 . . . . . . . . Insert Component 7 | . . . . . 1 6 . . . . . . . . Analyze 7 | . . . . . 1 6 . . . . . . . . Garrison Access Hacks . | . . . . . . . . . . . . . . . Unauthorized Hacks 7 | . 1 . . . . 1 . 3 2 . . . . . Terminals 6 | . 1 . . . . 1 . 2 2 . . . . . Assimilate 2 | . . . . . . 1 . . 1 . . . . . Botnet 4 | . 1 . . . . . . 2 1 . . . . . Fabricators . | . . . . . . . . . . . . . . . Repair Stations . | . . . . . . . . . . . . . . . Recycling Units 1 | . . . . . . . . 1 . . . . . . Tunnel 1 | . . . . . . . . 1 . . . . . . Scanalyzers . | . . . . . . . . . . . . . . . Garrison Access . | . . . . . . . . . . . . . . . Data Cores Recovered . | . . . . . . . . . . . . . . . Used . | . . . . . . . . . . . . . . . Hacking Detections 16 | . 2 . . . . 1 5 4 3 1 . . . . Full Trace Events 1 | . . . . . . . 1 . . . . . . . Feedback Events . | . . . . . . . . . . . . . . . Feedback Blocked . | . . . . . . . . . . . . . . . Robot Schematics Acquired 1 | . . . . . . . 1 . . . . . . . Robots Built 6 | . . . . . . . . . 6 . . . . . Authchips 2 | . . . . . . . . . 2 . . . . . Time 80 | . . . . . . . . . 80 . . . . . Total Robot Build Rating 6 | . . . . . . . . . 6 . . . . . Part Schematics Acquired 11 | . . . . . 1 6 . . . . . . 4 . Parts Built 2 | . . . . . . . . . . 2 . . . . Authchips . | . . . . . . . . . . . . . . . Time 139 | . . . . . . . . . . 139 . . . . Total Part Build Rating 18 | . . . . . . . . . . 18 . . . . Parts Repaired 1 | . . . . . . . 1 . . . . . . . Time 16 | . . . . . . . 16 . . . . . . . Parts Recycled . | . . . . . . . . . . . . . . . Recycled Matter . | . . . . . . . . . . . . . . . Retrieved Matter . | . . . . . . . . . . . . . . . Retrieved Components . | . . . . . . . . . . . . . . . Parts Scanalyzed 7 | . . . . . 1 6 . . . . . . . . Part Schematics Acquired 7 | . . . . . 1 6 . . . . . . . . Parts Damaged . | . . . . . . . . . . . . . . . Bothacking | -11 -10 -10 -10 -9 -8 -7 -7 -7 -5 -4 -4 -4 -4 -3 ------------ Run | Scr Mat Min Exi Min Mat Fac Sto Rec Fac Fac Upp Upp Zhi Pro Used RIF Installer . | . . . . . . . . . . . . . . . Robots Hacked 3 | . . . . . . . . . . . . . 3 . Non-combat . | . . . . . . . . . . . . . . . Combat 3 | . . . . . . . . . . . . . 3 . Robot Hacks Applied 3 | . . . . . . . . . . . . . 3 . parse_system 3 | . . . . . . . . . . . . . 3 . Relay Couplers Released . | . . . . . . . . . . . . . . . Fabnet Peak Effective % . | . . . . . . . . . . . . . . . Robots Rewired 2 | . . . . . . . . . . . 2 . . . Allies Hacked . | . . . . . . . . . . . . . . . Hacks Repelled . | . . . . . . . . . . . . . . . Allies | -11 -10 -10 -10 -9 -8 -7 -7 -7 -5 -4 -4 -4 -4 -3 -------- Run | Scr Mat Min Exi Min Mat Fac Sto Rec Fac Fac Upp Upp Zhi Pro Total Allies 12 | . . . . 3 . . . . 7 . 2 . . . Largest Group 6 | . . . . 3 . . . . 6 . 2 2 . . Highest-Rated Group 96 | . . . . 40 . . . . 48 . 96 96 . . Highest-Rated Ally 49 | . . . . 16 . . . . 26 . 49 49 . . Total Orders . | . . . . . . . . . . . . . . . Ally Attacks 57 | . . . . 12 . . . . 21 . . 24 . . Total Damage 1099 | . . . . 143 . . . . 176 . . 780 . . Kills 10 | . . . . 3 . . . . 1 . . 6 . . Allies Corrupted . | . . . . . . . . . . . . . . . Allies Melted . | . . . . . . . . . . . . . . . Intel | -11 -10 -10 -10 -9 -8 -7 -7 -7 -5 -4 -4 -4 -4 -3 ------- Run | Scr Mat Min Exi Min Mat Fac Sto Rec Fac Fac Upp Upp Zhi Pro Robot Analysis Total 5 | . . . . . . . . 1 . . . . 4 . Derelict Logs Recovered 1 | . . . . . . . . . . . 1 . . . Drone Launches . | . . . . . . . . . . . . . . . Drone Recoveries . | . . . . . . . . . . . . . . . Exploration | -11 -10 -10 -10 -9 -8 -7 -7 -7 -5 -4 -4 -4 -4 -3 ------------- Run | Scr Mat Min Exi Min Mat Fac Sto Rec Fac Fac Upp Upp Zhi Pro Turns Passed 7923 | 3 398 415 409 260 92 138 698 260 1586 933 1286 667 659 119 Spaces Moved 5407 | 1 242 308 338 186 101 227 412 560 1208 445 793 264 263 59 Core 15 | . . . . . . . . . 5 . 10 . . . Treads 1007 | . . . . . . . . . . 260 350 222 172 3 Legs 1093 | 1 242 308 338 186 . . . . 18 . . . . . Wheels 1145 | . . . . . . . . . 338 185 433 42 91 56 Hover 2147 | . . . . . 101 227 412 560 847 . . . . . Flight . | . . . . . . . . . . . . . . . Fastest Speed 33 | 120 120 120 120 120 48 48 40 40 33 95 115 115 110 110 Average Speed 102 | 120 120 120 120 120 48 48 49 40 55 150 147 220 197 118 Slowest Speed 700 | 120 120 190 120 120 48 48 116 40 550 160 700 320 240 240 Overloaded Moves 2 | . . . . . . . . . 2 . . . . . Propulsion Burnouts . | . . . . . . . . . . . . . . . Robots Hopped . | . . . . . . . . . . . . . . . Cave-ins Triggered . | . . . . . . . . . . . . . . . Exploration Rate (%) 39 | 1 39 40 71 37 14 5 53 92 25 8 81 44 62 13 Regions Visited 14 Branch Regions 9 Pre-discovered Areas 5 | . . . 1 . . . . 1 . . . . 3 . Known Exits Taken 3 | . 1 . . . . . 1 . . 1 . . . . Unknown Exits Taken 11 | 1 . 1 1 1 1 1 . 1 1 . 1 1 1 . Scrap Searched 8 | . . 1 . 2 . . . . . . 4 1 . . Spaces Dug 10 | . . . . . . . . . 10 . . . . . Terrain Destroyed 246 | . . . . 20 . . 37 23 121 13 29 1 . 2 Melee . | . . . . . . . . . . . . . . . Projectile 31 | . . . . . . . . . 17 2 9 1 . 2 AOE 215 | . . . . 20 . . 37 23 104 11 20 . . . Terrain Rammed . | . . . . . . . . . . . . . . . Walls Destroyed . | . . . . . . . . . . . . . . . Machines Disabled . | . . . . . . . . . . . . . . . Actions | -11 -10 -10 -10 -9 -8 -7 -7 -7 -5 -4 -4 -4 -4 -3 --------- Run | Scr Mat Min Exi Min Mat Fac Sto Rec Fac Fac Upp Upp Zhi Pro Total 7374 | 4 297 330 343 216 145 254 828 589 2041 681 876 310 381 79 Wait 1343 | . 8 7 . 23 23 14 297 11 703 178 17 6 56 . Move 5393 | . 241 307 337 185 100 226 411 559 1207 444 792 263 262 59 Hop . | . . . . . . . . . . . . . . . Pick Up 79 | . 10 1 3 1 5 3 10 5 15 11 4 2 9 . Fast Attach 62 | . 4 1 . . 3 2 9 . 13 7 8 5 10 . Attach 41 | . . . . . 7 1 4 1 13 6 1 4 3 1 Detach 9 | . . . . . 2 1 2 . 3 1 . . . . Swap 32 | . 1 1 . 2 . 2 10 1 8 1 2 . 3 1 Drop 73 | 4 6 2 3 1 5 4 12 4 12 4 3 . 13 . Fire 304 | . 27 10 . 4 . 1 72 8 67 16 27 30 25 17 Melee 1 | . . . . . . . . . . . . . . 1 Ram 2 | . . . . . . . 1 . . 1 . . . . Kick 1 | . . 1 . . . . . . . . . . . . Crush 12 | . . . . . . . . . . 12 . . . . Escape Stasis . | . . . . . . . . . . . . . . . Rewire 22 | . . . . . . . . . . . 22 . . . Trap . | . . . . . . . . . . . . . . . Miscellaneous . | . . . . . . . . . . . . . . . Route ------- -11/Scrapyard -10/Materials (discovered 5 exits: *Mat x3 / *Min x2) -10/Mines -10/Exiles (discovered 2 exits: [*Min x2]) -9/Mines -8/Materials -7/Factory -7/Storage -7/Recycling -5/Factory (discovered 3 exits: *Fac / Upp x2) -4/Factory -4/Upper Caves -4/Upper Caves -4/Zhirov -3/Proximity Caves History --------- Turn | Location | Event 4 | -11/Scrapyard | Discovered new exit (range 0) 4 | -11/Scrapyard | Entered Materials 45 | -10/Materials | Identified exit to Materials 134 | -10/Materials | Identified exit to Mines 322 | -10/Materials | Build established: Mutant 402 | -10/Materials | Entered Mines 530 | -10/Mines | Met a Derelict bent on vengeance 718 | -10/Mines | Deemed a non-threat by the Exiles lab entrance 718 | -10/Mines | Discovered new exit (range 5) 817 | -10/Mines | Entered Exiles 838 | -10/Exiles | Discovered new exit (range 14) 855 | -10/Exiles | Met 8R-AWN 875 | -10/Exiles | Met EX-HEX 940 | -10/Exiles | Met EX-DEC 970 | -10/Exiles | Learned location of Zion (-6) 990 | -10/Exiles | Met EX-BIN 1007 | -10/Exiles | Aligned with FarCom system 1008 | -10/Exiles | Given EX-Vault access code 1038 | -10/Exiles | Opened EX-Vault 1050 | -10/Exiles | Found Trap Reconfigurator 1052 | -10/Exiles | Found 0b10 Alert Chip 1080 | -10/Exiles | Warned to stay clear of 0b10 Research branches 1211 | -10/Exiles | Discovered new exit (range 14) 1226 | -10/Exiles | Left Exiles lab with 0b10 Alert Chip 1226 | -10/Exiles | Entered Mines 1385 | -9/Mines | Assisted by bots powering up and referring to "LRC-V3" 1479 | -9/Mines | Discovered new exit (range 5) 1486 | -9/Mines | Entered Materials 1486 | -8/Materials | Evolved 4 slots: Propulsion x2, Utility x2 1571 | -8/Materials | Discovered new exit (range 7) 1578 | -8/Materials | Entered Factory 1578 | -7/Factory | Evolved 2 slots: Power x1, Utility x1 1676 | -7/Factory | Discovered new exit (range 11) 1716 | -7/Factory | Entered Storage 1791 | -7/Storage | Repaired Imp. Hover Unit 1812 | -7/Storage | Build established: Hacker-Mutant 2360 | -7/Storage | Identified exit to Recycling 2397 | -7/Storage | Used back door to open Recycling access 2414 | -7/Storage | Entered Recycling 2435 | -7/Recycling | Spotter reported a threat 2502 | -7/Recycling | Spotter reported a threat 2502 | -7/Recycling | Spotter reported a threat 2529 | -7/Recycling | Spotter reported a threat 2549 | -7/Recycling | Spotter reported a threat 2560 | -7/Recycling | Spotter reported a threat 2666 | -7/Recycling | Discovered new exit (range 16) 2674 | -7/Recycling | Entered Factory 2674 | -5/Factory | Evolved 4 slots: Propulsion x2, Utility x2 2699 | -5/Factory | Identified exit to Upper Caves 2753 | -5/Factory | Fabricated G-34 Mercenary (x3) 2800 | -5/Factory | Fabricated G-34 Mercenary (x3) 2849 | -5/Factory | Found Prototype Device 2974 | -5/Factory | Search patrols dispatched 3145 | -5/Factory | Build established: Hacker-Scout 3274 | -5/Factory | Search patrols dispatched 3509 | -5/Factory | Identified Active Sensor Suite 3708 | -5/Factory | Spotted B-75 Beast 3821 | -5/Factory | Destroyed 8 combat bots 3851 | -5/Factory | System corruption reached 10% 3884 | -5/Factory | Lost 15 parts (2p6n4u3w) 4189 | -5/Factory | Core integrity fell below 50% 4237 | -5/Factory | Discovered new exit (range 14) 4260 | -5/Factory | Entered another Factory area 4260 | -4/Factory | Evolved 2 slots: Utility x2 4289 | -4/Factory | Lost 5 parts (1p3n1w) 4362 | -4/Factory | Identified exit to DSF 4373 | -4/Factory | Build established: Mutant 4593 | -4/Factory | Fabricated Adv. Heavy Siege Treads (x2) 5103 | -4/Factory | Discovered new exit (range 15) 5153 | -4/Factory | Garrison activated, responded to threat 5192 | -4/Factory | Identified exit to Upper Caves 5193 | -4/Factory | Entered Upper Caves 5434 | -4/Upper Caves | Learned location of 1 exit from Research 5488 | -4/Upper Caves | Build established: Skirmisher 5622 | -4/Upper Caves | Attracted the attention of an 0b10 outpost 5686 | -4/Upper Caves | System corruption reached 10% 5716 | -4/Upper Caves | Lost 11 parts (2p3n5u1w) 5721 | -4/Upper Caves | Destroyed 8 combat bots 5926 | -4/Upper Caves | Build established: Mutant 6369 | -4/Upper Caves | Discovered new exit (range 13) 6479 | -4/Upper Caves | Entered another Upper Caves area 6479 | -4/Upper Caves | Accompanied by 2 allies 6512 | -4/Upper Caves | Attracted the attention of an 0b10 checkpoint 6621 | -4/Upper Caves | Build established: Derelict-Mutant 6791 | -4/Upper Caves | Lost 3 parts (1p1n1u) 7041 | -4/Upper Caves | Build established: Scavenger-Mutant 7132 | -4/Upper Caves | Discovered new exit (range 6) 7146 | -4/Upper Caves | Entered Zhirov 7146 | -4/Zhirov | Discovered new exit (range 3) 7190 | -4/Zhirov | Met Zhirov 7277 | -4/Zhirov | Learned location of Command (-1) 7277 | -4/Zhirov | Learned location of Testing (-3) 7277 | -4/Zhirov | Learned location of Quarantine (-2) 7320 | -4/Zhirov | Zhirov requested help retrieving the SGEMP Prototype 7375 | -4/Zhirov | Found Alien Artifact 7412 | -4/Zhirov | Found Alien Artifact 7412 | -4/Zhirov | Identified Integrated Reactor 7412 | -4/Zhirov | Installed Integrated Reactor, increased core energy generation (+10) 7805 | -4/Zhirov | Entered Proximity Caves 7924 | -3/Proximity Caves | Self-destructed Last Messages --------------- 07904_ Arm. Wheel destroyed. 07904_ Slug penetrates S-43 Plague. 07905_ Acquired 34 matter. 07907_ Penetrated by Slug. 07907_ S-43 Plague destroyed. 07908_ Acquired 40 matter. 07909_ System corrupted: Matter fused (-5). 07910_ Imp. Treads destroyed. 07911_ Xenon Bombardment Thruster fries itself beyond repair. 07913_ Hvy. Machine Gun fries itself beyond repair. 07913_ Penetrated by Slug. 07914_ Xenon Bombardment Thruster fries itself beyond repair. 07921_ Lgt. Antimatter Reactor fries itself beyond repair. 07921_ Xenon Bombardment Thruster fries itself beyond repair. 07922_ Lgt. Antimatter Reactor melted. 07922_ S-43 Plague destroyed. 07923_ Penetrated by Slug. 07923_ Lrg. Storage Unit destroyed. 07924_ X ,ZLGRR| 0VH/#9BXTPME9BZ